[Event "XII Paracin Festival 2019"]
[Site "Paracin"]
[Date "2019.07.11"]
[Round "8.10"]
[White "Milosevic, Milos"]
[Black "Stojanovic, Mihajlo"]
[Result "0-1"]
[ECO "C11"]
[WhiteElo "2312"]
[BlackElo "2483"]
[Annotator "ChessBase"]
[PlyCount "40"]
[EventDate "2019.07.05"]
[EventType "swiss"]
[EventCountry "SRB"]
[SourceTitle "playchess.com"]
[Source "ChessBase"]
[SourceQuality "1"]
[TimeControl "5400+30"]

1. e4 {[%emt 0:00:00]} e6 {[%emt 0:00:00]} 2. d4 {[%emt 0:00:00]} d5 {[%emt 0:00:00]} 3. Nc3 {[%emt 0:00:00]} Nf6 {[%emt 0:00:27]} 4. Bg5 {[%emt 0:00:00]} dxe4 {[%emt 0:00:29]} 5. Nxe4 {[%emt 0:00:00]} Be7 {[%emt 0:08:10]} 6. Bxf6 {[%emt 0:00:00]} gxf6 {[%emt 0:00:07]} 7. Nf3 {[%emt 0:00:00]} b6 {[%emt 0:00:13]} 8. g3 {[%emt 0:01:27]} Bb7 {[%emt 0:00:25]} 9. Nc3 {[%emt 0:00:16]} Nc6 {[%emt 0:12:03]} 10. Rg1 {[%emt 0:44:24]} Qd6 {[%emt 0:28:57]} 11. Qd2 {[%emt 0:02:52]} O-O-O {[%emt 0:00:52]} 12. O-O-O {[%emt 0:01:14]} e5 {[%emt 0:12:29]} 13. d5 {[%emt 0:05:02]} Nb4 {[%emt 0:01:17]} 14. Nh4 {[%emt 0:12:57]} Nxd5 {[%emt 0:03:59]} 15. Nf5 {[%emt 0:11:08]} Qe6 {[%emt 0:02:10]} 16. Nxd5 {[%emt 0:01:35]} Bxd5 {[%emt 0:03:15]} 17. Bh3 {[%emt 0:00:45]} Kb8 {[%emt 0:01:02]} 18. Qh6 {[%emt 0:06:57]} Be4 {[%emt 0:04:13]} 19. Nd4 {[%emt 0:03:29]} Qxa2 {[%emt 0:00:59]} 20. Nb3 {[%emt 0:00:02]} Ba3 {[%emt 0:01:41]} 0-1

[Event "XII Paracin Festival 2019"]
[Site "Paracin"]
[Date "2019.07.11"]
[Round "8.11"]
[White "Kosic, Dragan"]
[Black "Maksimovic, Bojan"]
[Result "1/2-1/2"]
[ECO "B06"]
[WhiteElo "2482"]
[BlackElo "2326"]
[Annotator "ChessBase"]
[PlyCount "105"]
[EventDate "2019.07.05"]
[EventType "swiss"]
[EventCountry "SRB"]
[SourceTitle "playchess.com"]
[Source "ChessBase"]
[SourceQuality "1"]
[TimeControl "5400+30"]

1. d4 {[%emt 0:00:00]} g6 {[%emt 0:00:00]} 2. e4 {[%emt 0:00:07]} Bg7 {[%emt 0:00:00]} 3. c3 {[%emt 0:00:12]} d6 {[%emt 0:00:27]} 4. Bg5 {[%emt 0:00:07]} Nf6 {[%emt 0:04:31]} 5. Nd2 {[%emt 0:04:31]} Nbd7 {[%emt 0:01:40]} 6. Ngf3 {[%emt 0:00:49]} e5 {[%emt 0:00:59]} 7. dxe5 {[%emt 0:04:06]} dxe5 {[%emt 0:07:51]} 8. Bc4 {[%emt 0:04:59]} O-O {[%emt 0:01:55]} 9. O-O {[%emt 0:00:16]} Qe7 {[%emt 0:06:28]} 10. Re1 {[%emt 0:00:43]} h6 {[%emt 0:07:37]} 11. Bh4 {[%emt 0:00:06]} c6 {[%emt 0:01:09]} 12. a4 {[%emt 0:03:09]} a5 {[%emt 0:07:08]} 13. Qb3 {[%emt 0:03:09]} Nc5 {[%emt 0:05:02]} 14. Qa3 {[%emt 0:01:17]} Re8 {[%emt 0:00:52]} 15. Bf1 {[%emt 0:10:51]} Qf8 {[%emt 0:06:48]} 16. Rad1 {[%emt 0:03:11]} Bg4 {[%emt 0:05:14]} 17. h3 {[%emt 0:04:30]} Bxf3 {[%emt 0:03:26]} 18. gxf3 {[%emt 0:00:05]} Ne6 {[%emt 0:06:21]} 19. Qxf8+ {[%emt 0:03:11]} Kxf8 {[%emt 0:00:39]} 20. Nc4 {[%emt 0:00:10]} Ng5 {[%emt 0:07:56]} 21. Re3 {[%emt 0:02:50]} Nh5 {[%emt 0:04:44]} 22. Bg3 {[%emt 0:13:12]} Nf4 {[%emt 0:03:20]} 23. Bxf4 {[%emt 0:01:39]} exf4 {[%emt 0:00:02]} 24. Red3 {[%emt 0:00:09]} Ne6 25. Nb6 {[%emt 0:01:54]} Rad8 {[%emt 0:10:15]} 26. Nd7+ {[%emt 0:03:50]} Ke7 {[%emt 0:02:18]} 27. h4 {[%emt 0:01:09]} Bd4 {[%emt 0:01:59]} 28. cxd4 {[%emt 0:02:03]} Rxd7 {[%emt 0:00:07]} 29. d5 {[%emt 0:00:38]} Nc5 {[%emt 0:03:43]} 30. Rd4 {[%emt 0:03:32]} Red8 {[%emt 0:01:15]} 31. Kh2 {[%emt 0:08:52]} cxd5 {[%emt 0:01:10]} 32. exd5 {[%emt 0:00:28]} g5 {[%emt 0:00:22]} 33. Bc4 {[%emt 0:02:19]} Rd6 {[%emt 0:00:28]} 34. b3 {[%emt 0:01:00]} Kf6 {[%emt 0:00:27]} 35. Re1 {[%emt 0:00:42]} Rb6 {[%emt 0:00:14]} 36. Rdd1 {[%emt 0:03:12]} Rdd6 {[%emt 0:00:51]} 37. Re8 {[%emt 0:02:32]} Rb4 {[%emt 0:00:22]} 38. Rc8 {[%emt 0:04:56]} Nxb3 {[%emt 0:00:36]} 39. Rd3 {[%emt 0:00:26]} Na1 {[%emt 0:00:35]} 40. Bb5 {[%emt 0:00:27]} Nb3 {[%emt 0:00:30]} 41. Rc7 {[%emt 0:01:59]} Nd4 {[%emt 0:00:31]} 42. Be8 {[%emt 0:01:30]} Rxd5 {[%emt 0:00:30]} 43. Rxf7+ {[%emt 0:00:42]} Ke5 {[%emt 0:00:24]} 44. Re7+ {[%emt 0:01:10]} Kf6 {[%emt 0:00:21]} 45. Rh7 {[%emt 0:00:16]} gxh4 {[%emt 0:00:28]} 46. Rxh6+ {[%emt 0:00:51]} Ke7 {[%emt 0:00:19]} 47. Bb5 {[%emt 0:00:49]} Rf5 {[%emt 0:01:01]} 48. Rh7+ {[%emt 0:01:41]} Rf7 {[%emt 0:00:08]} 49. Rh5 {[%emt 0:00:25]} Rf5 {[%emt 0:00:48]} 50. Rh7+ {[%emt 0:01:26]} Rf7 {[%emt 0:00:05]} 51. Rh5 {[%emt 0:00:08]} Rf5 {[%emt 0:00:18]} 52. Rh7+ {[%emt 0:00:07]} Rf7 {[%emt 0:00:16]} 53. Rh5 {[%emt 0:00:07]} 1/2-1/2

[Event "XII Paracin Festival 2019"]
[Site "Paracin"]
[Date "2019.07.11"]
[Round "8.12"]
[White "Lazov, Toni"]
[Black "Petrov, Martin"]
[Result "0-1"]
[ECO "B90"]
[WhiteElo "2313"]
[BlackElo "2480"]
[Annotator "ChessBase"]
[PlyCount "124"]
[EventDate "2019.07.05"]
[EventType "swiss"]
[EventCountry "SRB"]
[SourceTitle "playchess.com"]
[Source "ChessBase"]
[SourceQuality "1"]
[TimeControl "5400+30"]

1. e4 {[%emt 0:00:00]} c5 {[%emt 0:00:00]} 2. Nf3 {[%emt 0:00:00]} d6 {[%emt 0:00:00]} 3. d4 {[%emt 0:00:00]} cxd4 {[%emt 0:00:00]} 4. Nxd4 {[%emt 0:00:00]} Nf6 {[%emt 0:00:03]} 5. Nc3 {[%emt 0:00:00]} a6 {[%emt 0:00:03]} 6. Bc4 {[%emt 0:00:21]} e6 {[%emt 0:00:51]} 7. Bb3 {[%emt 0:00:05]} Nbd7 {[%emt 0:00:48]} 8. f4 {[%emt 0:01:16]} Nc5 {[%emt 0:03:07]} 9. O-O {[%emt 0:03:20]} Nfxe4 {[%emt 0:03:24]} 10. Nxe4 {[%emt 0:01:26]} Nxe4 {[%emt 0:00:03]} 11. f5 {[%emt 0:00:07]} e5 {[%emt 0:00:05]} 12. Qh5 {[%emt 0:00:16]} d5 {[%emt 0:01:03]} 13. Re1 {[%emt 0:00:38]} Bc5 {[%emt 0:04:30]} 14. Rxe4 {[%emt 0:00:39]} Bxd4+ {[%emt 0:04:51]} 15. Rxd4 {[%emt 0:45:23]} Qb6 {[%emt 0:03:35]} 16. c3 {[%emt 0:05:21]} exd4 {[%emt 0:13:11]} 17. Qe2+ {[%emt 0:00:50]} Kd8 {[%emt 0:10:55]} 18. Qf2 {[%emt 0:01:03]} Re8 {[%emt 0:04:54]} 19. cxd4 {[%emt 0:04:49]} f6 {[%emt 0:07:51]} 20. h3 {[%emt 0:07:28]} Bd7 {[%emt 0:06:19]} 21. Bxd5 {[%emt 0:00:52]} Qb5 {[%emt 0:08:48]} 22. Bf3 {[%emt 0:02:06]} Bxf5 {[%emt 0:01:45]} 23. Qg3 {[%emt 0:09:13]} Qd7 {[%emt 0:02:32]} 24. Bd2 {[%emt 0:02:26]} Qxd4+ {[%emt 0:00:47]} 25. Kh2 {[%emt 0:00:04]} Qxd2 {[%emt 0:00:05]} 26. Rd1 {[%emt 0:00:15]} Qxd1 {[%emt 0:00:09]} 27. Bxd1 {[%emt 0:00:01]} Re7 {[%emt 0:00:38]} 28. Qd6+ {[%emt 0:03:30]} Ke8 {[%emt 0:01:21]} 29. Qd5 {[%emt 0:00:02]} Be6 {[%emt 0:00:36]} 30. Qh5+ {[%emt 0:00:18]} g6 {[%emt 0:01:19]} 31. Qh4 {[%emt 0:00:06]} Rd8 {[%emt 0:02:47]} 32. Bf3 {[%emt 0:01:22]} Rf7 {[%emt 0:02:39]} 33. Qe4 {[%emt 0:01:22]} Re7 {[%emt 0:00:13]} 34. Qh4 {[%emt 0:00:17]} f5 {[%emt 0:04:24]} 35. Qf6 {[%emt 0:03:55]} Bd5 {[%emt 0:00:40]} 36. Qh8+ {[%emt 0:05:23]} Kd7 {[%emt 0:00:04]} 37. Qd4 {[%emt 0:00:04]} Ke6 {[%emt 0:00:06]} 38. Qe3+ {[%emt 0:03:54]} Kf7 {[%emt 0:00:24]} 39. Qb6 {[%emt 0:00:34]} Ke8 {[%emt 0:01:27]} 40. Bxd5 {[%emt 0:00:16]} Rxd5 {[%emt 0:00:04]} 41. a4 {[%emt 0:00:27]} Rde5 {[%emt 0:01:02]} 42. b4 {[%emt 0:00:29]} Kf7 {[%emt 0:00:48]} 43. Qd8 {[%emt 0:00:43]} Kg7 {[%emt 0:00:24]} 44. Qd4 {[%emt 0:00:03]} h6 {[%emt 0:01:28]} 45. Qc3 {[%emt 0:01:01]} Kh7 {[%emt 0:00:08]} 46. Qd4 {[%emt 0:00:08]} Re4 {[%emt 0:01:03]} 47. Qd6 {[%emt 0:00:09]} h5 {[%emt 0:00:24]} 48. b5 {[%emt 0:00:27]} axb5 {[%emt 0:00:15]} 49. axb5 {[%emt 0:00:01]} Kg7 {[%emt 0:02:52]} 50. Qd2 {[%emt 0:00:28]} h4 {[%emt 0:01:28]} 51. Qc3+ {[%emt 0:00:12]} Kh7 {[%emt 0:02:17]} 52. Qf6 {[%emt 0:00:08]} Kh6 {[%emt 0:00:27]} 53. Qh8+ {[%emt 0:01:21]} Rh7 {[%emt 0:00:40]} 54. Qf6 {[%emt 0:00:26]} Rd7 {[%emt 0:00:17]} 55. Qc3 {[%emt 0:00:45]} Rd1 {[%emt 0:03:18]} 56. Qf6 {[%emt 0:01:22]} Kh5 {[%emt 0:00:10]} 57. g4+ {[%emt 0:00:44]} hxg3+ {[%emt 0:00:48]} 58. Kxg3 {[%emt 0:00:13]} Rd3+ {[%emt 0:00:19]} 59. Kf2 {[%emt 0:00:47]} Rxh3 {[%emt 0:00:42]} 60. Qg7 {[%emt 0:00:01]} Rhe3 {[%emt 0:00:56]} 61. Qxb7 {[%emt 0:00:32]} Kg4 {[%emt 0:00:20]} 62. Qg7 {[%emt 0:00:47]} Re2+ {[%emt 0:00:04]} 0-1

[Event "XII Paracin Festival 2019"]
[Site "Paracin"]
[Date "2019.07.11"]
[Round "8.13"]
[White "Stefansson, Vignir Vatnar"]
[Black "Stankovic, Milos"]
[Result "0-1"]
[ECO "A45"]
[WhiteElo "2293"]
[BlackElo "2462"]
[Annotator "ChessBase"]
[PlyCount "46"]
[EventDate "2019.07.05"]
[EventType "swiss"]
[EventCountry "SRB"]
[SourceTitle "playchess.com"]
[Source "ChessBase"]
[SourceQuality "1"]
[TimeControl "5400+30"]

1. d4 {[%emt 0:00:00]} Nf6 {[%emt 0:00:00]} 2. Nc3 {[%emt 0:00:00]} e6 {[%emt 0:01:52]} 3. Bf4 {[%emt 0:00:28]} d5 {[%emt 0:09:04]} 4. Nb5 {[%emt 0:02:01]} Na6 {[%emt 0:01:03]} 5. e3 {[%emt 0:00:05]} c6 {[%emt 0:03:20]} 6. Nc3 {[%emt 0:00:06]} Qb6 {[%emt 0:00:37]} 7. a3 {[%emt 0:05:54]} c5 {[%emt 0:08:19]} 8. dxc5 {[%emt 0:16:32]} Nxc5 {[%emt 0:04:18]} 9. Nb5 {[%emt 0:12:45]} Na6 {[%emt 0:01:07]} 10. a4 {[%emt 0:00:46]} Be7 {[%emt 0:05:55]} 11. Nf3 {[%emt 0:03:48]} O-O {[%emt 0:01:11]} 12. c3 {[%emt 0:01:25]} Bd7 {[%emt 0:02:51]} 13. Qd4 {[%emt 0:16:34]} Rfc8 {[%emt 0:11:38]} 14. a5 {[%emt 0:10:05]} Qd8 {[%emt 0:02:54]} 15. b4 {[%emt 0:01:31]} Ne4 {[%emt 0:01:00]} 16. Bd3 {[%emt 0:06:52]} Bxb5 {[%emt 0:02:33]} 17. Bxb5 {[%emt 0:00:04]} Nxc3 {[%emt 0:00:11]} 18. Bxa6 {[%emt 0:00:02]} bxa6 {[%emt 0:00:13]} 19. Nd2 {[%emt 0:00:39]} Qd7 {[%emt 0:01:45]} 20. Rc1 {[%emt 0:00:20]} Nb5 {[%emt 0:00:58]} 21. Rxc8+ {[%emt 0:00:06]} Rxc8 {[%emt 0:00:32]} 22. Qb2 {[%emt 0:00:15]} Bf6 {[%emt 0:00:31]} 23. Qb1 {[%emt 0:00:18]} Na3 {[%emt 0:00:26]} 0-1

[Event "XII Paracin Festival 2019"]
[Site "Paracin"]
[Date "2019.07.11"]
[Round "8.14"]
[White "Franklin, Samuel G A"]
[Black "Pikula, Dejan"]
[Result "0-1"]
[ECO "B43"]
[WhiteElo "2339"]
[BlackElo "2447"]
[Annotator "NA"]
[PlyCount "160"]
[EventDate "2019.07.05"]
[EventType "swiss"]
[EventCountry "SRB"]
[SourceTitle "playchess.com"]
[Source "ChessBase"]
[SourceQuality "1"]
[TimeControl "5400+30"]

1. e4 {[%emt 0:00:00]} c5 {[%emt 0:00:00]} 2. Nf3 {[%emt 0:00:09]} e6 {[%emt 0:00:08]} 3. d4 {[%emt 0:00:08]} cxd4 {[%emt 0:00:06]} 4. Nxd4 {[%emt 0:00:05]} a6 {[%emt 0:00:03]} 5. Nc3 {[%emt 0:00:48]} Qc7 {[%emt 0:00:09]} 6. Bd3 {[%emt 0:00:46]} Nf6 {[%emt 0:01:01]} 7. Qe2 {[%emt 0:01:25]} d6 {[%emt 0:00:15]} 8. O-O {[%emt 0:01:39]} Be7 {[%emt 0:00:09]} 9. f4 {[%emt 0:00:40]} Nbd7 {[%emt 0:00:19]} 10. Kh1 {[%emt 0:00:37]} O-O {[%emt 0:01:58]} 11. Bd2 {[%emt 0:01:24]} b5 {[%emt 0:01:22]} 12. Rae1 {[%emt 0:02:26]} Nc5 {[%emt 0:02:59]} 13. b4 {[%emt 0:17:47]} Nxd3 {[%emt 0:03:33]} 14. cxd3 {[%emt 0:00:04]} Bb7 {[%emt 0:00:33]} 15. Rc1 {[%emt 0:00:45]} Qd7 {[%emt 0:03:38]} 16. a3 {[%emt 0:08:06]} Rac8 {[%emt 0:03:35]} 17. Rc2 {[%emt 0:00:46]} g6 {[%emt 0:01:42]} 18. Rfc1 {[%emt 0:01:18]} Rfe8 {[%emt 0:03:14]} 19. Be3 {[%emt 0:01:13]} Bf8 {[%emt 0:01:32]} 20. Nb3 {[%emt 0:04:05]} Nh5 {[%emt 0:00:38]} 21. Kg1 {[%emt 0:03:42]} Bh6 {[%emt 0:01:48]} 22. Qf2 {[%emt 0:10:13]} f5 {[%emt 0:01:48]} 23. exf5 {[%emt 0:10:02]} exf5 {[%emt 0:03:53]} 24. Ne2 {[%emt 0:00:44]} Rxc2 {[%emt 0:00:26]} 25. Rxc2 {[%emt 0:00:06]} Qe6 {[%emt 0:00:14]} 26. Na5 {[%emt 0:03:06]} Bxg2 {[%emt 0:02:01]} 27. Ng3 {[%emt 0:04:51]} Nxg3 {[%emt 0:06:17]} 28. Kxg2 {[%emt 0:00:26]} Nh1 {[%emt 0:09:58]} 29. Kxh1 {[%emt 0:06:28]} Qxe3 {[%emt 0:00:14]} 30. Qxe3 {[%emt 0:00:07]} Rxe3 {[%emt 0:00:04]} 31. Rc6 {[%emt 0:00:06]} Rxd3 {[%emt 0:03:24]} 32. Rxa6 {[%emt 0:00:10]} Bxf4 {[%emt 0:00:18]} 33. Nc6 {[%emt 0:00:33]} Rd2 {[%emt 0:03:56]} 34. Na7 {[%emt 0:00:47]} Rxh2+ {[%emt 0:00:30]} 35. Kg1 {[%emt 0:01:41]} Rd2 {[%emt 0:00:07]} 36. Nxb5 {[%emt 0:00:11]} h5 {[%emt 0:00:08]} 37. Rc6 {[%emt 0:01:33]} h4 {[%emt 0:00:58]} 38. Rc3 {[%emt 0:00:13]} Bg3 {[%emt 0:00:59]} 39. Rc1 {[%emt 0:02:50]} h3 {[%emt 0:01:48]} 40. Nc3 {[%emt 0:00:26]} Bf4 {[%emt 0:02:15]} 41. Rd1 {[%emt 0:00:45]} Rg2+ {[%emt 0:01:42]} 42. Kh1 {[%emt 0:00:06]} Be5 {[%emt 0:01:32]} 43. Nd5 {[%emt 0:00:52]} Rh2+ {[%emt 0:00:07]} 44. Kg1 {[%emt 0:00:06]} Ra2 {[%emt 0:00:02]} 45. b5 {[%emt 0:01:10]} Rxa3 {[%emt 0:00:06]} 46. Rb1 {[%emt 0:00:18]} Ra7 {[%emt 0:03:13]} 47. b6 {[%emt 0:01:35]} Rb7 {[%emt 0:00:02]} 48. Rc1 {[%emt 0:01:50]} Bd4+ {[%emt 0:02:38]} 49. Kh2 {[%emt 0:00:24]} Rxb6 {[%emt 0:00:26]} 50. Nxb6 {[%emt 0:00:11]} Bxb6 {[%emt 0:00:03]} 51. Rc6 {[%emt 0:00:27]} Bd4 {[%emt 0:00:05]} 52. Kxh3 {[%emt 0:00:35]} Be5 {[%emt 0:00:05]} 53. Rc7 {[%emt 0:00:36]} Kf8 {[%emt 0:00:03]} 54. Rd7 {[%emt 0:02:00]} Ke8 {[%emt 0:00:06]} 55. Rb7 {[%emt 0:00:43]} Bf6 {[%emt 0:00:06]} 56. Kg3 {[%emt 0:00:25]} Be7 {[%emt 0:00:04]} 57. Kf4 {[%emt 0:00:21]} Kf7 {[%emt 0:00:04]} 58. Rb1 {[%emt 0:01:56]} Bf6 {[%emt 0:00:54]} 59. Rd1 {[%emt 0:00:55]} Be7 {[%emt 0:00:49]} 60. Rg1 {[%emt 0:02:04]} Kf6 {[%emt 0:00:10]} 61. Rg2 {[%emt 0:00:16]} Bf8 {[%emt 0:00:04]} 62. Kf3 {[%emt 0:00:43]} Bh6 {[%emt 0:00:30]} 63. Rh2 {[%emt 0:00:11]} Bg7 {[%emt 0:00:18]} 64. Rd2 {[%emt 0:00:09]} Bf8 {[%emt 0:00:20]} 65. Rh2 {[%emt 0:00:49]} g5 {[%emt 0:00:10]} 66. Rh8 {[%emt 0:00:25]} Kg7 {[%emt 0:00:15]} 67. Rh5 {[%emt 0:00:19]} Be7 {[%emt 0:00:02]} 68. Kg3 {[%emt 0:00:29]} Bf6 {[%emt 0:00:06]} 69. Kf3 {[%emt 0:00:20]} Kg6 {[%emt 0:00:06]} 70. Rh1 {[%emt 0:00:04]} Be5 {[%emt 0:00:06]} 71. Rb1 {[%emt 0:00:38]} g4+ {[%emt 0:00:09]} 72. Ke3 {[%emt 0:00:45]} Kg5 {[%emt 0:00:55]} 73. Rb8 {[%emt 0:00:14]} Kh4 {[%emt 0:00:34]} 74. Rf8 {[%emt 0:00:47]} f4+ {[%emt 0:00:09]} 75. Kf2 {[%emt 0:02:29]} Bd4+ {[%emt 0:01:00]} 76. Kg2 {[%emt 0:00:34]} f3+ {[%emt 0:00:09]} 77. Kf1 {[%emt 0:00:11]} Kh3 {[%emt 0:00:22]} 78. Rf4 {[%emt 0:02:29]} Bc5 {[%emt 0:00:15]} 79. Rf5 {[%emt 0:00:28]} g3 {[%emt 0:00:39]} 80. Rxf3 {[%emt 0:00:17]} Kh2 {[%emt 0:00:03]} 0-1

[Event "XII Paracin Festival 2019"]
[Site "Paracin"]
[Date "2019.07.11"]
[Round "8.15"]
[White "Radovanovic, Nikola"]
[Black "Sadykov, Ramil"]
[Result "1/2-1/2"]
[ECO "D31"]
[WhiteElo "2431"]
[BlackElo "2342"]
[Annotator "NA"]
[PlyCount "96"]
[EventDate "2019.07.05"]
[EventType "swiss"]
[EventCountry "SRB"]
[SourceTitle "playchess.com"]
[Source "ChessBase"]
[SourceQuality "1"]
[TimeControl "5400+30"]

1. d4 {[%emt 0:00:00]} d5 {[%emt 0:00:00]} 2. c4 {[%emt 0:00:00]} e6 {[%emt 0:00:00]} 3. Nc3 {[%emt 0:00:00]} Be7 {[%emt 0:00:00]} 4. Nf3 {[%emt 0:01:03]} Nf6 {[%emt 0:00:00]} 5. cxd5 {[%emt 0:00:12]} exd5 {[%emt 0:00:00]} 6. Bg5 {[%emt 0:00:10]} c6 {[%emt 0:00:06]} 7. Qc2 {[%emt 0:00:31]} g6 {[%emt 0:00:02]} 8. e3 {[%emt 0:04:05]} Bf5 {[%emt 0:01:22]} 9. Bd3 {[%emt 0:00:15]} Bxd3 {[%emt 0:00:06]} 10. Qxd3 {[%emt 0:00:04]} O-O {[%emt 0:05:27]} 11. Bxf6 {[%emt 0:09:13]} Bxf6 {[%emt 0:00:04]} 12. b4 {[%emt 0:01:20]} a6 {[%emt 0:00:03]} 13. O-O {[%emt 0:02:09]} Nd7 {[%emt 0:01:10]} 14. a4 {[%emt 0:06:57]} b5 {[%emt 0:04:08]} 15. a5 {[%emt 0:01:18]} Be7 {[%emt 0:06:12]} 16. Rab1 {[%emt 0:03:04]} Bd6 {[%emt 0:05:53]} 17. Ne2 {[%emt 0:12:19]} Re8 {[%emt 0:09:56]} 18. Rfc1 {[%emt 0:00:52]} Rc8 {[%emt 0:01:33]} 19. Rc2 {[%emt 0:00:26]} Kg7 {[%emt 0:10:48]} 20. Qb3 {[%emt 0:03:46]} Qe7 {[%emt 0:00:34]} 21. Nc1 {[%emt 0:02:43]} Rc7 {[%emt 0:02:29]} 22. Nd3 {[%emt 0:00:53]} h5 {[%emt 0:00:54]} 23. Rbc1 {[%emt 0:01:08]} Rec8 {[%emt 0:02:56]} 24. Qb2 {[%emt 0:04:19]} f6 {[%emt 0:04:55]} 25. Nd2 {[%emt 0:04:39]} g5 {[%emt 0:07:29]} 26. Re1 {[%emt 0:02:49]} f5 {[%emt 0:03:52]} 27. f3 {[%emt 0:21:25]} Nf6 {[%emt 0:00:38]} 28. Nc5 {[%emt 0:02:01]} Bxc5 {[%emt 0:00:19]} 29. Rxc5 {[%emt 0:00:15]} g4 {[%emt 0:03:01]} 30. Qb1 {[%emt 0:02:18]} gxf3 {[%emt 0:08:43]} 31. Nxf3 {[%emt 0:04:00]} Ne4 {[%emt 0:01:52]} 32. Rc2 {[%emt 0:00:10]} Nd6 {[%emt 0:01:08]} 33. Ne5 {[%emt 0:02:25]} Qg5 {[%emt 0:01:31]} 34. Rf2 {[%emt 0:00:48]} Rf8 {[%emt 0:00:13]} 35. Rf4 {[%emt 0:00:51]} Kh6 {[%emt 0:05:14]} 36. Re2 {[%emt 0:01:57]} Rf6 {[%emt 0:02:52]} 37. Qf1 {[%emt 0:00:32]} Ne4 {[%emt 0:02:30]} 38. h4 {[%emt 0:04:55]} Qg3 {[%emt 0:01:20]} 39. Rxf5 {[%emt 0:00:23]} Qxh4 {[%emt 0:01:20]} 40. Rxf6+ {[%emt 0:00:29]} Nxf6 {[%emt 0:00:10]} 41. Rf2 {[%emt 0:01:25]} Ng4 {[%emt 0:03:24]} 42. Nxg4+ {[%emt 0:00:10]} hxg4 {[%emt 0:00:02]} 43. Rf5 {[%emt 0:02:30]} Kg6 {[%emt 0:02:00]} 44. Rf8 {[%emt 0:00:37]} Kg7 {[%emt 0:00:01]} 45. Qf4 {[%emt 0:00:32]} Qe1+ {[%emt 0:00:04]} 46. Kh2 {[%emt 0:00:08]} Qh4+ {[%emt 0:00:05]} 47. Kg1 {[%emt 0:00:04]} Qe1+ {[%emt 0:00:32]} 48. Kh2 {[%emt 0:00:05]} Qh4+ {[%emt 0:00:04]} 1/2-1/2

[Event "XII Paracin Festival 2019"]
[Site "Paracin"]
[Date "2019.07.11"]
[Round "8.16"]
[White "Chen, Peng"]
[Black "Djordjevic, Vuk"]
[Result "0-1"]
[ECO "C03"]
[WhiteElo "2328"]
[BlackElo "2412"]
[Annotator "NA"]
[PlyCount "122"]
[EventDate "2019.07.05"]
[EventType "swiss"]
[EventCountry "SRB"]
[SourceTitle "playchess.com"]
[Source "ChessBase"]
[SourceQuality "1"]
[TimeControl "5400+30"]

1. e4 {[%emt 0:00:00]} e6 {[%emt 0:00:48]} 2. d4 {[%emt 0:00:00]} d5 {[%emt 0:00:04]} 3. Nd2 {[%emt 0:00:00]} Be7 {[%emt 0:00:05]} 4. Bd3 {[%emt 0:00:27]} c5 {[%emt 0:00:06]} 5. dxc5 {[%emt 0:00:15]} Nf6 {[%emt 0:00:48]} 6. Qe2 {[%emt 0:00:31]} O-O {[%emt 0:01:09]} 7. Ngf3 {[%emt 0:00:09]} a5 {[%emt 0:00:35]} 8. e5 {[%emt 0:02:12]} Nfd7 {[%emt 0:00:51]} 9. h4 {[%emt 0:00:14]} f5 {[%emt 0:12:59]} 10. exf6 {[%emt 0:04:17]} Nxf6 {[%emt 0:00:26]} 11. Ne5 {[%emt 0:05:46]} Nbd7 {[%emt 0:14:09]} 12. Ndf3 {[%emt 0:13:40]} Nxc5 {[%emt 0:02:24]} 13. Bg5 {[%emt 0:01:47]} Nfe4 {[%emt 0:06:09]} 14. O-O-O {[%emt 0:03:37]} a4 {[%emt 0:11:05]} 15. a3 {[%emt 0:01:21]} Bf6 {[%emt 0:05:49]} 16. Be3 {[%emt 0:22:23]} Nxd3+ {[%emt 0:03:26]} 17. cxd3 {[%emt 0:02:23]} Qc7+ {[%emt 0:01:40]} 18. Qc2 {[%emt 0:00:19]} Qxc2+ {[%emt 0:03:43]} 19. Kxc2 {[%emt 0:00:02]} Nxf2 {[%emt 0:00:55]} 20. Bxf2 {[%emt 0:04:08]} Bxe5 {[%emt 0:00:07]} 21. Nxe5 {[%emt 0:01:39]} Rxf2+ {[%emt 0:00:05]} 22. Rd2 {[%emt 0:00:01]} Rf5 {[%emt 0:04:47]} 23. Re2 {[%emt 0:09:12]} b6 {[%emt 0:04:30]} 24. Kd2 {[%emt 0:00:04]} Bb7 {[%emt 0:02:41]} 25. Rc1 {[%emt 0:00:05]} d4 {[%emt 0:01:19]} 26. Rc7 {[%emt 0:01:21]} Bd5 {[%emt 0:01:27]} 27. Nc6 {[%emt 0:02:39]} Bxc6 {[%emt 0:03:05]} 28. Rxc6 {[%emt 0:00:01]} Rb5 {[%emt 0:01:22]} 29. Ke1 {[%emt 0:06:36]} e5 {[%emt 0:04:39]} 30. Re6 {[%emt 0:05:23]} Rb3 {[%emt 0:04:17]} 31. Rd2 {[%emt 0:04:23]} Ra5 {[%emt 0:02:46]} 32. Re7 {[%emt 0:02:42]} h5 {[%emt 0:02:26]} 33. g4 {[%emt 0:01:58]} Rc5 {[%emt 0:03:36]} 34. g5 {[%emt 0:02:58]} Kh7 {[%emt 0:02:03]} 35. Kd1 {[%emt 0:03:14]} Kg6 {[%emt 0:00:23]} 36. Ra7 {[%emt 0:00:13]} Ra5 {[%emt 0:00:43]} 37. Re7 {[%emt 0:00:34]} Rc5 {[%emt 0:00:06]} 38. Ra7 {[%emt 0:00:14]} b5 {[%emt 0:00:45]} 39. Rb7 {[%emt 0:00:54]} Rc6 {[%emt 0:00:35]} 40. Re7 {[%emt 0:00:18]} Rc5 {[%emt 0:00:27]} 41. Rb7 {[%emt 0:00:08]} Rc6 {[%emt 0:00:37]} 42. Re7 {[%emt 0:00:17]} Kf5 {[%emt 0:00:29]} 43. Rxg7 {[%emt 0:00:12]} Kg4 {[%emt 0:00:30]} 44. g6 {[%emt 0:01:57]} Kxh4 {[%emt 0:00:19]} 45. Rg8 {[%emt 0:00:11]} Kg5 {[%emt 0:00:33]} 46. Rg2+ {[%emt 0:00:29]} Kh6 {[%emt 0:00:22]} 47. Rh8+ {[%emt 0:00:43]} Kg7 {[%emt 0:00:02]} 48. Rh7+ {[%emt 0:00:03]} Kg8 {[%emt 0:00:18]} 49. Rxh5 {[%emt 0:01:43]} Rxd3+ {[%emt 0:00:08]} 50. Ke2 {[%emt 0:00:29]} e4 {[%emt 0:00:25]} 51. Rgh2 {[%emt 0:00:44]} Rc2+ {[%emt 0:00:26]} 52. Ke1 {[%emt 0:00:02]} Rc1+ {[%emt 0:00:18]} 53. Ke2 {[%emt 0:00:19]} Rc2+ {[%emt 0:01:24]} 54. Ke1 {[%emt 0:00:00]} Rxh2 {[%emt 0:00:44]} 55. Rxh2 {[%emt 0:00:02]} e3 {[%emt 0:00:35]} 56. Rc2 {[%emt 0:02:08]} Rb3 {[%emt 0:00:21]} 57. Rc8+ {[%emt 0:00:26]} Kg7 {[%emt 0:00:01]} 58. Rd8 {[%emt 0:00:02]} d3 {[%emt 0:00:19]} 59. Rd6 {[%emt 0:00:18]} b4 {[%emt 0:00:17]} 60. axb4 {[%emt 0:00:10]} a3 {[%emt 0:00:08]} 61. Rxd3 {[%emt 0:00:58]} Rxd3 {[%emt 0:00:08]} 0-1